bitfinex/quotes_BTCUSD_20230901
["timestamp","ask_amount","ask_price","bid_price","bid_amount"]
[1693542414340,4.34116803,26101.0,26100.0,0.98490708]
[1693542414551,4.34140803,26101.0,26100.0,0.98490708]
[1693542414752,4.34116803,26101.0,26100.0,0.98490708]
[1693542414947,4.34164803,26101.0,26100.0,0.98490708]
[1693542415287,4.34176803,26101.0,26100.0,0.98490708]
[1693542415515,4.69515425,26101.0,26100.0,0.98490708]
[1693542415650,4.34230803,26101.0,26100.0,0.98490708]
[1693542415848,4.46358092,26101.0,26100.0,0.98490708]
[1693542416072,4.71016213,26101.0,26100.0,0.98490708]
[1693542416289,4.71028213,26101.0,26100.0,0.98490708]
[1693542416516,4.71058213,26101.0,26100.0,0.98490708]
[1693542416671,4.72454284,26101.0,26100.0,0.98490708]
[1693542416877,4.48278092,26101.0,26100.0,0.98490708]
[1693542417082,4.86795509,26101.0,26100.0,0.98490708]
[1693542417286,4.86747509,26101.0,26100.0,0.98490708]
[1693542417466,4.86723509,26101.0,26100.0,0.98490708]
[1693542417668,4.86759509,26101.0,26100.0,0.98490708]
[1693542417983,4.86825509,26101.0,26100.0,0.98490708]
[1693542418392,4.86831509,26101.0,26100.0,0.98490708]
[1693542418596,4.86819509,26101.0,26100.0,0.98490708]
[1693542418772,4.87569509,26101.0,26100.0,0.98490708]
[1693542418950,4.87563509,26101.0,26100.0,0.98490708]
[1693542419154,4.87545509,26101.0,26100.0,0.98490708]
[1693542419360,4.87347509,26101.0,26100.0,0.98490708]
[1693542419748,4.87509509,26101.0,26100.0,0.98490708]
[1693542419949,4.87461509,26101.0,26100.0,0.98490708]
[1693542420363,4.87485509,26101.0,26100.0,0.98490708]
[1693542420535,4.87473509,26101.0,26100.0,0.98490708]
[1693542420739,4.87713509,26101.0,26100.0,0.98490708]
[1693542420941,4.87695509,26101.0,26100.0,0.98490708]
[1693542421148,4.87689509,26101.0,26100.0,0.98490708]
[1693542421285,4.86909509,26101.0,26100.0,0.98490708]
[1693542421489,4.86681509,26101.0,26100.0,0.98490708]
[1693542421821,4.69129509,26101.0,26100.0,0.98490708]
[1693542422021,4.69117509,26101.0,26100.0,0.98490708]
[1693542422232,4.69111509,26101.0,26100.0,0.98490708]
[1693542422473,4.69087509,26101.0,26100.0,0.98490708]
[1693542422617,4.69075509,26101.0,26100.0,0.98490708]
[1693542422799,4.69147509,26101.0,26100.0,0.98490708]
[1693542423033,4.69009509,26101.0,26100.0,0.98490708]
[1693542423234,4.69003509,26101.0,26100.0,0.98490708]
[1693542423593,4.68985509,26101.0,26100.0,0.98490708]
[1693542423797,4.92681707,26101.0,26100.0,0.98490708]
[1693542423997,4.92135707,26101.0,26100.0,0.98490708]
[1693542424203,4.5320429,26101.0,26100.0,0.98490708]
[1693542424379,4.5306629,26101.0,26100.0,0.98490708]
[1693542424556,4.5309629,26101.0,26100.0,0.98490708]
[1693542424757,4.5312029,26101.0,26100.0,0.98490708]
[1693542424963,4.5313229,26101.0,26100.0,0.98490708]
[1693542425169,4.5314429,26101.0,26100.0,0.98490708]
[1693542425459,4.5315629,26101.0,26100.0,0.98490708]
[1693542425642,4.5231629,26101.0,26100.0,0.98490708]
[1693542425779,4.5238229,26101.0,26100.0,0.98490708]
[1693542425981,4.5222029,26101.0,26100.0,0.98490708]
[1693542426226,4.91211707,26101.0,26100.0,0.98490708]
[1693542426427,5.08667707,26101.0,26100.0,0.98490708]
[1693542426628,5.08679707,26101.0,26100.0,0.98490708]
[1693542426833,5.08667707,26101.0,26100.0,0.98490708]
[1693542427033,5.08679707,26101.0,26100.0,0.98490708]
[1693542427185,5.08691707,26101.0,26100.0,0.98490708]
[1693542427382,5.08733707,26101.0,26100.0,0.98490708]
[1693542427589,5.08799707,26101.0,26100.0,0.98490708]
[1693542427812,5.08763707,26101.0,26100.0,0.98490708]
[1693542428042,5.09003299,26101.0,26100.0,0.98490708]
[1693542428227,5.09015299,26101.0,26100.0,0.98490708]
[1693542428429,5.09033299,26101.0,26100.0,0.98490708]
[1693542428651,5.09147299,26101.0,26100.0,0.98490708]
[1693542428826,5.09057299,26101.0,26100.0,0.98490708]
[1693542429028,4.70347882,26101.0,26100.0,0.98490708]
[1693542429458,1.76106864,26101.0,26100.0,0.98490708]
[1693542430527,2.33575864,26101.0,26100.0,0.98490708]
[1693542431638,2.66159247,26101.0,26100.0,0.98490708]
[1693542431875,3.24018247,26101.0,26100.0,0.98490708]
[1693542432076,3.24144247,26101.0,26100.0,0.98490708]
[1693542432278,3.24318247,26101.0,26100.0,0.98490708]
[1693542432489,3.24330247,26101.0,26100.0,0.98490708]
[1693542432697,3.24342247,26101.0,26100.0,0.98490708]
[1693542432899,3.24378247,26101.0,26100.0,0.98490708]
[1693542433032,3.24402247,26101.0,26100.0,0.98490708]
[1693542433262,3.24246247,26101.0,26100.0,0.98490708]
[1693542433459,3.24252247,26101.0,26100.0,0.98490708]
[1693542433662,3.24144247,26101.0,26100.0,0.98490708]
[1693542433886,3.24150247,26101.0,26100.0,0.98490708]
[1693542434088,3.24168247,26101.0,26100.0,0.98490708]
[1693542434463,3.24204247,26101.0,26100.0,0.98490708]
[1693542434838,3.24258247,26101.0,26100.0,0.98490708]
[1693542435050,3.24552247,26101.0,26100.0,0.98490708]
[1693542435205,3.24588247,26101.0,26100.0,0.98490708]
[1693542435412,3.24594247,26101.0,26100.0,0.98490708]
[1693542435662,3.24636247,26101.0,26100.0,0.98490708]
[1693542435861,3.82135247,26101.0,26100.0,0.98490708]
[1693542436071,3.82153247,26101.0,26100.0,0.98490708]
[1693542436272,3.79837247,26101.0,26100.0,0.98490708]
[1693542436502,3.91669247,26101.0,26100.0,0.98490708]
[1693542436650,3.91705247,26101.0,26100.0,0.98490708]
[1693542436850,3.91693247,26101.0,26100.0,0.98490708]
[1693542437027,3.91687247,26101.0,26100.0,0.98490708]
[1693542437246,3.91681247,26101.0,26100.0,0.98490708]
[1693542437450,3.91663247,26101.0,26100.0,0.98490708]
[1693542437692,3.91669247,26101.0,26100.0,0.98490708]
[1693542437899,3.91651247,26101.0,26100.0,0.98490708]
[1693542438095,3.91663247,26101.0,26100.0,0.98490708]
[1693542438413,3.91669247,26101.0,26100.0,0.98490708]
[1693542438640,3.91591247,26101.0,26100.0,0.98490708]
[1693542438977,3.91669247,26101.0,26100.0,0.98490708]
[1693542439240,3.91681247,26101.0,26100.0,0.98490708]
[1693542439505,3.91687247,26101.0,26100.0,0.98490708]
[1693542439764,3.91693247,26101.0,26100.0,0.98490708]
[1693542440032,3.91657247,26101.0,26100.0,0.98490708]
[1693542440291,3.91699247,26101.0,26100.0,0.98490708]
[1693542440590,3.91711247,26101.0,26100.0,0.98490708]
[1693542440804,3.91699247,26101.0,26100.0,0.98490708]
[1693542441040,3.91711247,26101.0,26100.0,0.98490708]
[1693542441302,3.34236247,26101.0,26100.0,0.98490708]
[1693542441515,3.34344247,26101.0,26100.0,0.98490708]
[1693542441767,3.34290247,26101.0,26100.0,0.98490708]
[1693542442271,3.34344247,26101.0,26100.0,0.98490708]
[1693542443489,3.34332247,26101.0,26100.0,0.98490708]
[1693542443729,3.34260247,26101.0,26100.0,0.98490708]
[1693542443961,3.34266247,26101.0,26100.0,0.98490708]
[1693542444199,3.34272247,26101.0,26100.0,0.98490708]
[1693542444488,3.92131247,26101.0,26100.0,0.98490708]
[1693542444757,3.92215247,26101.0,26100.0,0.98490708]
[1693542445019,3.91819247,26101.0,26100.0,0.98490708]
[1693542445274,3.91783247,26101.0,26100.0,0.98490708]
[1693542445481,3.91819247,26101.0,26100.0,0.98490708]
[1693542445748,0.09989815,26096.0,26095.0,0.04964421]
[1693542445960,3.52274948,26096.0,26095.0,0.04964421]
[1693542446179,0.05989815,26088.0,26087.0,0.574999]
[1693542446388,0.01989815,26087.0,26086.0,1.21966985]
[1693542446596,0.20372929,26087.0,26086.0,0.595208]
[1693542447011,0.90372929,26087.0,26086.0,0.595208]
[1693542447418,0.85772226,26087.0,26086.0,0.0202]
[1693542447619,0.89372226,26087.0,26086.0,0.0202]
[1693542448438,1.02157781,26087.0,26086.0,0.0202]
[1693542449496,0.8837537,26087.0,26086.0,0.0202]
[1693542452259,1.0032982,26087.0,26086.0,0.0202]
[1693542452473,1.09515375,26087.0,26086.0,0.0202]
[1693542453495,1.05915375,26087.0,26086.0,0.0202]
[1693542453938,1.09515375,26087.0,26086.0,0.0202]
[1693542454338,0.79189815,26087.0,26086.0,0.0202]
[1693542456961,1.05933986,26087.0,26086.0,0.0202]
[1693542457165,1.1080146,26087.0,26086.0,0.0202]
[1693542461714,1.05933986,26087.0,26086.0,0.0202]
[1693542477686,1.44642664,26087.0,26086.0,0.0202]
[1693542484632,0.79189815,26087.0,26086.0,1.116221]
[1693542484881,0.79189815,26087.0,26086.0,2.266263]
[1693542486738,0.79189815,26087.0,26086.0,1.691242]
[1693542488506,0.79189815,26087.0,26086.0,0.998021]
[1693542488710,1.02157781,26087.0,26086.0,0.423]
[1693542489306,0.92972226,26087.0,26086.0,0.423]
[1693542490307,1.1623464,26087.0,26086.0,0.423]
[1693542490521,1.16242745,26087.0,26086.0,0.423]
[1693542491100,1.16242745,26087.0,26086.0,0.0202]
[1693542491299,0.97852733,26087.0,26086.0,0.0202]
[1693542491504,1.64167742,26087.0,26086.0,0.0202]
[1693542493645,1.97779318,26087.0,26086.0,0.0202]
[1693542493845,1.64167742,26087.0,26086.0,0.0202]
[1693542511750,1.64215449,26087.0,26086.0,0.0202]
[1693542534922,1.36609118,26087.0,26086.0,0.0202]
[1693542553203,1.3666328,26087.0,26086.0,0.0202]
[1693542553648,1.63472686,26087.0,26086.0,0.0202]
[1693542554530,1.91094372,26087.0,26086.0,0.0202]
[1693542557086,2.24640009,26087.0,26086.0,0.0202]
[1693542557314,1.91094372,26087.0,26086.0,0.0202]
[1693542563984,1.95094372,26087.0,26086.0,0.0202]
[1693542568923,1.93094372,26087.0,26086.0,0.0202]
[1693542569106,1.91094372,26087.0,26086.0,0.0202]
[1693542569307,1.93094372,26087.0,26086.0,0.0202]
[1693542578207,1.91094372,26087.0,26086.0,0.0202]
[1693542594263,2.00886797,26087.0,26086.0,0.0202]
[1693542599949,1.91094372,26087.0,26086.0,0.0202]
[1693542605100,1.91094372,26087.0,26086.0,0.2102]
[1693542605449,2.48594272,26087.0,26086.0,0.2102]
[1693542605644,3.06094172,26087.0,26086.0,0.2102]
[1693542608033,2.48594272,26087.0,26086.0,0.2102]
[1693542609012,1.91094372,26087.0,26086.0,0.2102]
[1693542612464,1.90802772,26087.0,26086.0,0.2102]
[1693542617871,2.005904,26087.0,26086.0,0.2102]
[1693542619184,2.01397471,26087.0,26086.0,0.2102]
[1693542619869,2.02279133,26087.0,26086.0,0.2102]
[1693542621035,2.29887038,26087.0,26086.0,0.2102]
[1693542621952,2.02279133,26087.0,26086.0,0.2102]
[1693542622558,2.06279133,26087.0,26086.0,0.2102]
[1693542622764,1.79469727,26087.0,26086.0,0.2102]
[1693542622965,2.06249938,26087.0,26086.0,0.2102]
[1693542623369,2.04249938,26087.0,26086.0,0.2102]
[1693542623571,2.06249938,26087.0,26086.0,0.2102]
[1693542629156,2.04249938,26087.0,26086.0,0.2102]
[1693542636208,2.61749838,26087.0,26086.0,0.2102]
[1693542638354,2.59749838,26087.0,26086.0,0.2102]
[1693542640516,3.46728921,26087.0,26086.0,0.2102]
[1693542640744,3.14919527,26087.0,26086.0,0.2102]
[1693542640943,3.66207364,26087.0,26086.0,0.2102]
[1693542641146,3.66177364,26087.0,26086.0,0.2102]
[1693542641304,3.45941006,26087.0,26086.0,0.2102]
[1693542641664,3.42347006,26087.0,26086.0,0.2102]
[1693542641869,3.42527006,26087.0,26086.0,0.2102]
[1693542642019,4.00074906,26087.0,26086.0,0.2102]
[1693542642224,4.09630844,26087.0,26086.0,0.2102]
[1693542642426,4.46722844,26087.0,26086.0,0.2102]
[1693542642627,4.47202844,26087.0,26086.0,0.2102]
[1693542642890,4.55202844,26087.0,26086.0,0.2102]
[1693542643054,4.52190844,26087.0,26086.0,0.2102]
[1693542643260,4.52292844,26087.0,26086.0,0.2102]
[1693542643459,4.48626844,26087.0,26086.0,0.2102]
[1693542643663,4.52136844,26087.0,26086.0,0.2102]
[1693542643836,4.51914844,26087.0,26086.0,0.2102]
[1693542644041,4.51902844,26087.0,26086.0,0.2102]
[1693542644307,4.51932844,26087.0,26086.0,0.2102]
[1693542644512,4.51776844,26087.0,26086.0,0.2102]
[1693542644691,4.51758844,26087.0,26086.0,0.2102]
[1693542644842,4.51734844,26087.0,26086.0,0.2102]
[1693542645095,4.51710844,26087.0,26086.0,0.2102]
[1693542645300,4.55334844,26087.0,26086.0,0.2102]
[1693542645501,0.66678215,26086.0,26085.0,0.0202]
[1693542645699,4.16303444,26086.0,26085.0,0.0202]
[1693542645900,4.63345444,26086.0,26085.0,0.0202]
[1693542646111,4.62727444,26086.0,26085.0,0.0202]
[1693542646313,4.63549444,26086.0,26085.0,0.0202]
[1693542646677,5.33195444,26086.0,26085.0,0.0202]
[1693542646787,5.33633444,26086.0,26085.0,0.0202]
[1693542646990,5.35747444,26086.0,26085.0,0.0202]
[1693542647329,5.35747444,26086.0,26085.0,0.2102]
[1693542647330,5.35279444,26086.0,26085.0,0.2102]
[1693542647543,5.42479444,26086.0,26085.0,0.2102]
[1693542647738,5.42497444,26086.0,26085.0,0.2102]
[1693542647942,5.38879444,26086.0,26085.0,0.2102]
[1693542648148,5.38885444,26086.0,26085.0,0.2102]
[1693542648488,5.42521444,26086.0,26085.0,0.2102]
[1693542648692,5.42203444,26086.0,26085.0,0.2102]
[1693542649095,5.42203444,26086.0,26085.0,0.0202]
[1693542649096,5.42311444,26086.0,26085.0,0.0202]
[1693542649296,5.41651444,26086.0,26085.0,0.0202]
[1693542649497,5.41633444,26086.0,26085.0,0.0202]
[1693542649680,5.41741444,26086.0,26085.0,0.0202]
[1693542649888,5.41765444,26086.0,26085.0,0.0202]
[1693542650141,5.41669444,26086.0,26085.0,0.0202]
[1693542650348,5.61064444,26086.0,26085.0,0.0202]
[1693542650555,5.91683315,26086.0,26085.0,0.0202]
[1693542650757,5.60722444,26086.0,26085.0,0.0202]
[1693542650961,5.91665198,26086.0,26085.0,0.0202]
[1693542651165,5.91785198,26086.0,26085.0,0.0202]
[1693542651381,5.60806444,26086.0,26085.0,0.0202]
[1693542651593,5.61118444,26086.0,26085.0,0.0202]
[1693542651808,5.91978428,26086.0,26085.0,0.0202]
[1693542652013,5.91990428,26086.0,26085.0,0.0202]
[1693542652220,5.91996428,26086.0,26085.0,0.0202]
[1693542652436,5.92002428,26086.0,26085.0,0.0202]
[1693542652678,5.92032428,26086.0,26085.0,0.0202]
[1693542652901,5.92218428,26086.0,26085.0,0.0202]
[1693542653109,5.92428428,26086.0,26085.0,0.0202]
[1693542653314,5.61718444,26086.0,26085.0,0.0202]
[1693542653522,5.62486444,26086.0,26085.0,0.0202]
[1693542653961,5.62522444,26086.0,26085.0,0.0202]
[1693542654133,5.62546444,26086.0,26085.0,0.0202]
[1693542654348,5.62534444,26086.0,26085.0,0.0202]
[1693542654544,5.62528444,26086.0,26085.0,0.0202]
[1693542654720,5.62108444,26086.0,26085.0,0.0202]
[1693542654925,5.62162444,26086.0,26085.0,0.0202]
[1693542655122,5.62156444,26086.0,26085.0,0.0202]
[1693542655343,5.62144444,26086.0,26085.0,0.0202]
[1693542655707,5.62624444,26086.0,26085.0,0.0202]
[1693542655923,5.76232444,26086.0,26085.0,0.0202]
[1693542656096,5.76436444,26086.0,26085.0,0.0202]
[1693542656327,0.17698215,26085.0,26084.0,0.016983]
[1693542656460,4.40033277,26085.0,26084.0,0.016983]
[1693542656690,4.52267277,26085.0,26084.0,0.016983]
[1693542656898,4.52201277,26085.0,26084.0,0.016983]
[1693542657101,4.66121277,26085.0,26084.0,0.016983]
[1693542657326,4.66469277,26085.0,26084.0,0.016983]
[1693542657530,4.66589277,26085.0,26084.0,0.016983]
[1693542657755,4.69613277,26085.0,26084.0,0.016983]
[1693542657952,4.69865277,26085.0,26084.0,0.016983]
[1693542658110,4.69841277,26085.0,26084.0,0.016983]
[1693542658310,4.73417277,26085.0,26084.0,0.016983]
[1693542658512,4.73393277,26085.0,26084.0,0.016983]
[1693542658796,4.73261277,26085.0,26084.0,0.016983]
[1693542658928,4.73345277,26085.0,26084.0,0.016983]
[1693542659289,4.92525277,26085.0,26084.0,0.016983]
[1693542659427,4.92537277,26085.0,26084.0,0.016983]
[1693542659635,4.92381277,26085.0,26084.0,0.016983]
[1693542659837,4.92441277,26085.0,26084.0,0.016983]
[1693542660036,4.92417277,26085.0,26084.0,0.016983]
[1693542660226,4.92681277,26085.0,26084.0,0.016983]
[1693542660472,4.92741277,26085.0,26084.0,0.016983]
[1693542660670,4.77297277,26085.0,26084.0,0.016983]
[1693542660876,4.76691277,26085.0,26084.0,0.016983]
[1693542661124,4.77447277,26085.0,26084.0,0.016983]
[1693542661320,4.77759277,26085.0,26084.0,0.016983]
[1693542661537,4.77411277,26085.0,26084.0,0.016983]
[1693542661702,4.77351277,26085.0,26084.0,0.016983]
[1693542661879,4.77357277,26085.0,26084.0,0.016983]
[1693542662079,4.77399277,26085.0,26084.0,0.016983]
[1693542662276,4.77411277,26085.0,26084.0,0.016983]
[1693542662480,4.77405277,26085.0,26084.0,0.016983]
[1693542662681,4.80935013,26085.0,26084.0,0.016983]
[1693542662926,0.85999915,26084.0,26083.0,0.0202]
[1693542663137,4.77550344,26084.0,26083.0,0.0202]
[1693542663314,4.77262344,26084.0,26083.0,0.0202]
[1693542663666,4.77058344,26084.0,26083.0,0.0202]
[1693542663780,5.47579601,26084.0,26083.0,0.0202]
[1693542663984,5.57433628,26084.0,26083.0,0.0202]
[1693542664195,5.61057628,26084.0,26083.0,0.0202]
[1693542664438,5.65041628,26084.0,26083.0,0.0202]
[1693542664639,5.64477628,26084.0,26083.0,0.0202]
[1693542664850,5.64549628,26084.0,26083.0,0.0202]
[1693542665194,5.64621628,26084.0,26083.0,0.0202]
[1693542665417,5.64633628,26084.0,26083.0,0.0202]
[1693542665638,5.38689628,26084.0,26083.0,0.0202]
[1693542665818,5.38617628,26084.0,26083.0,0.0202]
[1693542666014,5.69507867,26084.0,26083.0,0.0202]
[1693542666534,5.69513867,26084.0,26083.0,0.0202]
[1693542666738,5.69519867,26084.0,26083.0,0.0202]
[1693542667036,5.69543867,26084.0,26083.0,0.0202]
[1693542667368,5.69297867,26084.0,26083.0,0.0202]
[1693542667572,5.69441867,26084.0,26083.0,0.0202]
[1693542667772,5.69411867,26084.0,26083.0,0.0202]
[1693542667963,5.69465867,26084.0,26083.0,0.0202]
[1693542668121,5.69525867,26084.0,26083.0,0.0202]
[1693542668529,5.69531867,26084.0,26083.0,0.0202]
[1693542668704,5.69513867,26084.0,26083.0,0.0202]
[1693542668907,5.69567867,26084.0,26083.0,0.0202]
[1693542669135,5.69573867,26084.0,26083.0,0.0202]
[1693542669340,5.69483867,26084.0,26083.0,0.0202]
[1693542669538,5.69519867,26084.0,26083.0,0.0202]
[1693542669743,5.69513867,26084.0,26083.0,0.0202]
[1693542670128,5.69525867,26084.0,26083.0,0.0202]
[1693542670513,5.69639867,26084.0,26083.0,0.0202]
[1693542670714,5.82593867,26084.0,26083.0,0.0202]
[1693542670920,5.82749867,26084.0,26083.0,0.0202]
[1693542671079,5.82761867,26084.0,26083.0,0.0202]
[1693542671283,5.82665867,26084.0,26083.0,0.0202]
[1693542671603,5.69603867,26084.0,26083.0,0.0202]
[1693542671797,5.69609867,26084.0,26083.0,0.0202]
[1693542672026,5.69579867,26084.0,26083.0,0.0202]
[1693542672241,5.69501867,26084.0,26083.0,0.0202]
[1693542672427,5.69525867,26084.0,26083.0,0.0202]
[1693542672635,5.69531867,26084.0,26083.0,0.0202]
[1693542672862,5.69573867,26084.0,26083.0,0.0202]
[1693542673074,5.82713867,26084.0,26083.0,0.0202]
[1693542673423,5.82761867,26084.0,26083.0,0.0202]
[1693542673784,5.85789605,26084.0,26083.0,0.0202]
[1693542674109,5.85801605,26084.0,26083.0,0.0202]
[1693542674310,5.72721605,26084.0,26083.0,0.0202]
[1693542674511,5.72715605,26084.0,26083.0,0.0202]
[1693542674720,5.72721605,26084.0,26083.0,0.0202]
[1693542674920,5.72715605,26084.0,26083.0,0.0202]
[1693542675140,5.72655605,26084.0,26083.0,0.0202]
[1693542675428,5.85669605,26084.0,26083.0,0.0202]
[1693542675562,5.72721605,26084.0,26083.0,0.0202]
[1693542675793,5.41441366,26084.0,26083.0,0.0202]
[1693542676030,5.41117366,26084.0,26083.0,0.0202]
[1693542676243,0.17698215,26083.0,26082.0,0.01690112]
[1693542676467,5.04621448,26083.0,26082.0,0.01690112]
[1693542676674,5.04585448,26083.0,26082.0,0.01690112]
[1693542676914,5.04591448,26083.0,26082.0,0.01690112]
[1693542677279,5.23778448,26083.0,26082.0,0.01690112]
[1693542677478,5.30984448,26083.0,26082.0,0.01690112]
[1693542677705,5.30960448,26083.0,26082.0,0.01690112]
[1693542677910,5.32064448,26083.0,26082.0,0.01690112]
[1693542678112,5.31926448,26083.0,26082.0,0.01690112]
[1693542678297,5.31932448,26083.0,26082.0,0.01690112]
[1693542678499,5.31878448,26083.0,26082.0,0.01690112]
[1693542678787,5.31890448,26083.0,26082.0,0.01690112]
[1693542679007,5.31926448,26083.0,26082.0,0.01690112]
[1693542679296,5.32052448,26083.0,26082.0,0.01690112]
[1693542679526,5.31710448,26083.0,26082.0,0.01690112]
[1693542679733,5.31644448,26083.0,26082.0,0.01690112]
[1693542679937,5.31698448,26083.0,26082.0,0.01690112]
[1693542680116,5.31704448,26083.0,26082.0,0.01690112]
[1693542680319,5.31632448,26083.0,26082.0,0.01690112]
[1693542680540,5.31638448,26083.0,26082.0,0.01690112]
[1693542680743,5.31590448,26083.0,26082.0,0.01690112]
[1693542680903,5.31626448,26083.0,26082.0,0.01690112]
[1693542681099,5.31650448,26083.0,26082.0,0.01690112]
[1693542681672,5.31602448,26083.0,26082.0,0.01690112]
[1693542681878,5.31638448,26083.0,26082.0,0.01690112]
[1693542682058,5.31674448,26083.0,26082.0,0.01690112]
[1693542682235,5.31632448,26083.0,26082.0,0.01690112]
[1693542682444,5.31608448,26083.0,26082.0,0.01690112]
[1693542682597,5.31614448,26083.0,26082.0,0.01690112]
[1693542682804,5.00661903,26083.0,26082.0,0.01690112]
[1693542683033,5.00721903,26083.0,26082.0,0.01690112]
[1693542683237,5.22581771,26083.0,26082.0,0.01690112]
[1693542683448,4.9459189,26083.0,26082.0,0.01690112]
[1693542683666,5.19741786,26083.0,26082.0,0.01690112]
[1693542683870,5.00398903,26083.0,26082.0,0.01690112]
[1693542684070,5.00854903,26083.0,26082.0,0.01690112]
[1693542684271,5.00356903,26083.0,26082.0,0.01690112]
[1693542684481,4.72925007,26083.0,26082.0,0.01690112]
[1693542684674,4.73093007,26083.0,26082.0,0.01690112]
[1693542684890,4.6833976,26083.0,26082.0,0.01690112]
[1693542685138,4.6836976,26083.0,26082.0,0.01690112]
[1693542685339,4.46608451,26083.0,26082.0,0.01690112]
[1693542685546,4.47418451,26083.0,26082.0,0.01690112]
[1693542685749,4.46992451,26083.0,26082.0,0.01690112]
[1693542686070,4.47040451,26083.0,26082.0,0.01690112]
[1693542686225,4.47064451,26083.0,26082.0,0.01690112]
[1693542686429,4.47070451,26083.0,26082.0,0.01690112]
[1693542686805,4.74385392,26083.0,26082.0,0.01690112]
[1693542687007,4.46926451,26083.0,26082.0,0.01690112]
[1693542687137,4.64529322,26083.0,26082.0,0.01690112]
[1693542687342,4.42933111,26083.0,26082.0,0.01690112]
[1693542687544,4.43041111,26083.0,26082.0,0.01690112]
[1693542687727,4.43287111,26083.0,26082.0,0.01690112]
[1693542687927,4.82308528,26083.0,26082.0,0.01690112]
[1693542688349,4.82320528,26083.0,26082.0,0.01690112]
[1693542688750,4.82266528,26083.0,26082.0,0.01690112]
[1693542688995,4.82296528,26083.0,26082.0,0.01690112]
[1693542689195,4.82272528,26083.0,26082.0,0.01690112]
[1693542689400,4.82494528,26083.0,26082.0,0.01690112]
[1693542689598,4.82512528,26083.0,26082.0,0.01690112]
[1693542689918,4.82500528,26083.0,26082.0,0.01690112]
[1693542690118,4.82398528,26083.0,26082.0,0.01690112]
[1693542690323,4.82464528,26083.0,26082.0,0.01690112]
[1693542690526,4.82530528,26083.0,26082.0,0.01690112]
[1693542690739,4.82578528,26083.0,26082.0,0.01690112]
[1693542690947,4.82500528,26083.0,26082.0,0.01690112]
[1693542691176,4.82482528,26083.0,26082.0,0.01690112]
[1693542691365,4.82500528,26083.0,26082.0,0.01690112]
[1693542691615,4.82518528,26083.0,26082.0,0.01690112]
[1693542691802,4.82530528,26083.0,26082.0,0.01690112]
[1693542692002,4.82626528,26083.0,26082.0,0.01690112]
[1693542692423,4.82614528,26083.0,26082.0,0.01690112]
[1693542692622,4.82602528,26083.0,26082.0,0.01690112]
[1693542692822,4.82626528,26083.0,26082.0,0.01690112]
[1693542693269,4.82824528,26083.0,26082.0,0.01690112]
[1693542693483,4.82836528,26083.0,26082.0,0.01690112]
[1693542693662,4.82842528,26083.0,26082.0,0.01690112]
[1693542693886,4.82848528,26083.0,26082.0,0.01690112]
[1693542694090,4.82806528,26083.0,26082.0,0.01690112]
[1693542694292,4.83022528,26083.0,26082.0,0.01690112]
[1693542694498,4.83040528,26083.0,26082.0,0.01690112]
[1693542694674,4.83064528,26083.0,26082.0,0.01690112]
[1693542694876,4.83058528,26083.0,26082.0,0.01690112]
[1693542695032,4.83070528,26083.0,26082.0,0.01690112]
[1693542695213,4.83094528,26083.0,26082.0,0.01690112]
[1693542695412,4.83076528,26083.0,26082.0,0.01690112]
[1693542695640,4.83082528,26083.0,26082.0,0.01690112]
[1693542695845,4.84846528,26083.0,26082.0,0.01690112]
[1693542696091,4.84768528,26083.0,26082.0,0.01690112]
[1693542696292,4.84828528,26083.0,26082.0,0.01690112]
[1693542696640,4.84690528,26083.0,26082.0,0.01690112]
[1693542696971,4.84678528,26083.0,26082.0,0.01690112]
[1693542697175,4.84612528,26083.0,26082.0,0.01690112]
[1693542697391,4.84636528,26083.0,26082.0,0.01690112]
[1693542697589,4.84552528,26083.0,26082.0,0.01690112]
[1693542697789,4.84546528,26083.0,26082.0,0.01690112]
[1693542697994,4.84540528,26083.0,26082.0,0.01690112]
[1693542698212,4.84498528,26083.0,26082.0,0.01690112]
[1693542698426,4.84438528,26083.0,26082.0,0.01690112]
[1693542698959,5.32587882,26083.0,26082.0,0.01690112]
[1693542699106,4.84444528,26083.0,26082.0,0.01690112]
[1693542699304,4.84438528,26083.0,26082.0,0.01690112]
[1693542699511,4.84462528,26083.0,26082.0,0.01690112]
[1693542699732,4.84432528,26083.0,26082.0,0.01690112]
[1693542699937,4.84420528,26083.0,26082.0,0.01690112]
[1693542700134,4.84354528,26083.0,26082.0,0.01690112]
[1693542700334,4.84444528,26083.0,26082.0,0.01690112]
[1693542700533,4.84402528,26083.0,26082.0,0.01690112]
[1693542700833,5.32531395,26083.0,26082.0,0.01690112]
[1693542701033,5.32513395,26083.0,26082.0,0.01690112]
[1693542701223,5.32501395,26083.0,26082.0,0.01690112]
[1693542701417,5.32795395,26083.0,26082.0,0.01690112]
[1693542701618,5.32783395,26083.0,26082.0,0.01690112]
[1693542701871,5.32597395,26083.0,26082.0,0.01690112]
[1693542702162,5.34591395,26083.0,26082.0,0.01690112]
[1693542702361,5.35113395,26083.0,26082.0,0.01690112]
[1693542702567,5.41067762,26083.0,26082.0,0.01690112]
[1693542702767,5.41037762,26083.0,26082.0,0.01690112]
[1693542702902,5.40641762,26083.0,26082.0,0.01690112]
[1693542703133,5.40623762,26083.0,26082.0,0.01690112]
[1693542703324,5.40497762,26083.0,26082.0,0.01690112]
[1693542703529,5.56379762,26083.0,26082.0,0.01690112]
[1693542703770,0.09981298,26081.0,26080.0,0.0252]
[1693542703924,3.95357417,26081.0,26080.0,0.0252]
[1693542704123,4.69786494,26081.0,26080.0,0.0252]
[1693542704389,4.69792494,26081.0,26080.0,0.0252]
[1693542704614,4.69768494,26081.0,26080.0,0.0252]
[1693542704889,4.70050494,26081.0,26080.0,0.0252]
[1693542705099,4.69882494,26081.0,26080.0,0.0252]
[1693542705297,4.73452494,26081.0,26080.0,0.0252]
[1693542705507,4.77040494,26081.0,26080.0,0.0252]
[1693542705730,4.77088494,26081.0,26080.0,0.0252]
[1693542706004,4.76661411,26081.0,26080.0,0.0252]
[1693542706427,4.76619411,26081.0,26080.0,0.0252]
[1693542706669,4.76667411,26081.0,26080.0,0.0252]
[1693542706869,4.97056521,26081.0,26080.0,0.0252]
[1693542707111,4.97020521,26081.0,26080.0,0.0252]
[1693542707596,4.96954521,26081.0,26080.0,0.0252]
[1693542707801,4.96972521,26081.0,26080.0,0.0252]
[1693542708041,4.96978521,26081.0,26080.0,0.0252]
[1693542708274,4.96960521,26081.0,26080.0,0.0252]
[1693542708514,4.96936521,26081.0,26080.0,0.0252]
[1693542708776,5.22842521,26081.0,26080.0,0.0252]
[1693542709002,5.77191107,26081.0,26080.0,0.0252]
[1693542709247,5.87183107,26081.0,26080.0,0.0252]
[1693542709474,5.83343107,26081.0,26080.0,0.0252]
[1693542709717,5.82563107,26081.0,26080.0,0.0252]